Cogmind - Beta 15 @@@ ROGUE MODE // 2025.08.23 @ 13:20:44 Player: winnking222 Result: Destroyed by P6-770(R) with Subdweller Machine Gun Performance ------------- Evolutions (0) 0 Regions Visited (2) 400 Robots Destroyed (23) 115 Value Destroyed (572) 572 Prototype IDs (0) 0 Alien Tech Used (0) 0 Bonus (0) 0 TOTAL SCORE: 1087 Bonus ------- None Cogmind --------- Core Integrity 0/250 Matter 300/300 Energy 250/250 System Corruption 0% Temperature Cool (0) Movement Walking (120) Location -10/Subcaves Parts ------- > --- POWER (1) -------- Ion Engine > --- PROPULSION (2) --- Aluminum Leg Aluminum Leg > --- UTILITY (2) ------ (None) > --- WEAPON (2) ------- Beam Cannon Beam Cannon > --- INVENTORY (5) ---- Subdweller Power Source Wheel High-capacity Storage Unit Seismic Detector Beam Cannon Peak State ------------ > --- POWER ------------ Ion Engine > --- PROPULSION ------- Aluminum Leg Aluminum Leg > --- UTILITY ---------- Scrap Shield > --- WEAPON ----------- Assault Rifle Light Assault Rifle > --- INVENTORY -------- Light Treads Seismic Detector Beam Cannon Light Assault Rifle Light Assault Rifle [Rating: 9] Favorites ----------- Power Ion Engine Engine Ion Engine Propulsion Aluminum Leg Treads Light Treads Leg Aluminum Leg Utility Seismic Detector Device Seismic Detector Storage High-capacity Storage Unit Protection Scrap Shield Weapon Beam Cannon Energy Gun Medium Laser Energy Cannon Beam Cannon Ballistic Gun Assault Rifle Ballistic Cannon Light Cannon Build | -11 -10 -10 ------- Run | Yrd Mat Sub Slots Evolved . | . . . Power . | . . . Propulsion . | . . . Utility . | . . . Weapon . | . . . Parts Attached 19 | 7 6 6 Power 2 | 1 . 1 Engine 2 | 1 . 1 Core . | . . . Reactor . | . . . Propulsion 4 | 2 2 . Treads 2 | . 2 . Leg 2 | 2 . . Wheel . | . . . Hover . | . . . Flight . | . . . Utility 4 | 2 1 1 Device 1 | 1 . . Storage 2 | 1 1 . Processor . | . . . Hackware . | . . . Protection 1 | . . 1 Artifact . | . . . Weapon 9 | 2 3 4 Energy Gun 2 | 2 . . Energy Cannon 2 | . . 2 Ballistic Gun 4 | . 2 2 Ballistic Cannon 1 | . 1 . Launcher . | . . . Special Weapon . | . . . Impact Weapon . | . . . Slashing Weapon . | . . . Piercing Weapon . | . . . Special Melee Weapon . | . . . Unidentified Prototypes . | . . . Parts Lost 4 | . 3 1 Power 1 | . 1 . Propulsion 1 | . 1 . Utility 1 | . . 1 Weapon 1 | . 1 . Highest Loss Streak 3 | . 3 1 To Critical Strikes . | . . . Average Backups 7 | 5 10 5 Power . | . 1 . Propulsion 2 | 3 3 1 Utility 1 | . 1 2 Weapon 2 | 1 4 1 Tool/Special . | . . . Unused Backups 5 | . 1 4 Power 1 | . . 1 Propulsion 2 | . 1 1 Utility 1 | . . 1 Weapon 1 | . . 1 Tool/Special . | . . . Average Slot Usage (%) 83 | . 83 83 Engine 9 | . 5 13 Treads 9 | . 18 . Leg 13 | . 2 27 Device 7 | . 14 . Storage 7 | . 14 . Protection 5 | . . 11 Energy Gun 1 | . 1 . Energy Cannon 12 | . . 26 Ballistic Gun 12 | . 21 1 Ballistic Cannon 2 | . 4 . Peak Build Rating 9 | 7 8 9 Average Rating 7 | 6 6 8 On Entrance 4 | . 7 6 Naked Turns . | . . . Heaviest Build 51 | 15 51 49 Greatest Support 40 | 20 40 20 Greatest Overweight (x) 2 | 2 2 2 Average Overweight (x) . | . 1 . Largest Inventory Capacity 20 | 8 20 20 Average Capacity 12 | 7 19 5 Most Carried 12 | 7 12 10 Average Carried 7 | 5 10 5 Final Capacity 20 | 8 20 5 Final Carried 11 | 7 11 5 Class Distribution -------------------- 100% | Mutant Dominant Class ---------------- Mutant | -10/Materials Mutant | -10/Subcaves Resources | -11 -10 -10 ----------- Run | Yrd Mat Sub Matter Collected 682 | 270 310 102 Remotely . | . . . Salvage Created 661 | 120 423 118 Parts 36 | 18 12 6 Haulers Intercepted . | . . . Recyclers Shooed . | . . . Parts Field Recycled . | . . . Retrieved Matter . | . . . Parts Self-Destructed 8 | . . 8 Prevented . | . . . Kills | -11 -10 -10 ------- Run | Yrd Mat Sub Combat Hostiles Destroyed 13 | . 10 3 Guns 6 | . 6 . Cannons 6 | . 4 2 Classes Destroyed 5 | 1 3 1 Worker 1 | . 1 . Tunneler 8 | 8 . . Watcher 1 | . 1 . Grunt 10 | . 10 . Subdweller 3 | . . 3 Best Kill Streak 4 | 4 4 2 Combat Bots Only 4 | . 4 2 Max Kills in Single Turn 1 | 1 1 1 Gunslinging . | . . . Exploded . | . . . Melee . | . . . Uniques/NPCs Destroyed . | . . . Combat | -11 -10 -10 -------- Run | Yrd Mat Sub Hostile Shots Fired 111 | . 90 21 Missed 30 | . 27 3 Hits 81 | . 63 18 Projectile 81 | . 63 18 AOE 4 | . . 4 Critical Strikes 2 | . 1 1 Damage Taken 1379 | . 795 584 Core 258 | . 174 84 Absorbed by Shields . | . . . Core Remaining (%) 100 | 100 . . Volleys Fired 68 | 11 47 10 Largest 2 | 2 2 2 Hottest 120 | 100 50 120 Shots Fired 136 | 22 94 20 Gun 88 | 22 66 . Cannon 48 | . 28 20 Launcher . | . . . Special . | . . . Kinetic 94 | . 94 . Thermal 42 | 22 . 20 Explosive . | . . . Electromagnetic . | . . . Robot Hit Streak 11 | 9 11 9 Robot Miss Streak 4 | 1 4 2 Penetration Max . | . . . Secondary Targets . | . . . Shots Hit Robots 82 | 16 52 14 Core Hits 32 | 8 21 3 Critical Kills 1 | . . 1 Critical Parts Destroyed . | . . . Critical Strikes 2 | . 1 1 Meltdown 1 | . . 1 Blast 1 | . 1 . Melee Attacks . | . . . Impact . | . . . Slashing . | . . . Piercing . | . . . Sneak Attacks . | . . . Combat Hostiles . | . . . Follow-up Attacks . | . . . Damage Inflicted 1167 | 211 711 245 Guns 645 | 211 434 . Cannons 522 | . 277 245 Explosions . | . . . Melee . | . . . Ramming . | . . . Kinetic 711 | . 711 . Thermal 456 | 211 . 245 Explosive . | . . . Electromagnetic . | . . . Impact . | . . . Slashing . | . . . Piercing . | . . . Highest Corruption . | . . . Average Corruption . | . . . Corruption Purged . | . . . Corruption Blocked . | . . . Overload Shots . | . . . Overflow Damage . | . . . Projectiles . | . . . Explosions . | . . . Melee . | . . . Knockbacks 3 | . 3 . Impact . | . . . Kinetic 2 | . 2 . Secondary 1 | . 1 . Self-Inflicted Damage . | . . . Shots . | . . . Rammed . | . . . Targets Rammed . | . . . Kicked . | . . . Crushed . | . . . Highest Temperature 195 | 195 27 36 Average Temperature 40 | 80 8 21 Received Heat Transfer 528 | . 468 60 Siege Activations . | . . . Martial Activations . | . . . Shielding Activations . | . . . Robots Disrupted . | . . . Combat Hostiles . | . . . Robots Corrupted . | . . . Combat Hostiles . | . . . Parts Fried . | . . . Impact Corruptions . | . . . Robots Melted 1 | . . 1 Combat Hostiles 1 | . . 1 Parts Melted 2 | 2 . . Heat Transferred 1147 | 629 . 518 Parts Sabotaged . | . . . Parts Stolen . | . . . Parts Stripped . | . . . Power Chain Reactions . | . . . Alert | -11 -10 -10 ------- Run | Yrd Mat Sub Maximum Alert Level . | . . . Low Security (%) 100 | 100 100 . Level 1 . | . . . Level 2 . | . . . Level 3 . | . . . Level 4 . | . . . Level 5 . | . . . High Security . | . . . Max Security . | . . . Peak Influence 160 | 15 160 . Initial 3 | . 3 . Average 29 | 1 35 . Influence Increases 355 | 40 315 . Destroy 0b10 Robot/C 200 | . 200 . Destroy 0b10 Robot/NC 50 | 40 10 . Destroy Leader 52 | . 52 . Successful Hack 22 | . 22 . Destroy Structure 1 | . 1 . Lose Combat Pursuer 30 | . 30 . Influence Decreases 355 | 35 320 . Entered New Map 2 | . 2 . Time Decay 323 | 35 288 . Lost Part 30 | . 30 . Squads Dispatched 2 | . 2 . Investigation 1 | . 1 . Extermination . | . . . Reinforcement 1 | . 1 . Assault . | . . . Garrison . | . . . Intercept . | . . . Searches Triggered . | . . . Construction Impeded . | . . . Haulers Reinforced . | . . . Active Scanning Responses . | . . . Cargo Convoy Interrupts . | . . . Stealth | -11 -10 -10 --------- Run | Yrd Mat Sub Distress Signals . | . . . Communications Jammed . | . . . Distress Signals . | . . . Times Spotted 26 | . 18 8 Peak Tracking Total 8 | . 8 2 Tactical Retreats 2 | . 2 . Traps | -11 -10 -10 ------- Run | Yrd Mat Sub Traps Triggered 1 | . 1 . Indirectly . | . . . Trap Hack Attempts . | . . . Triggered . | . . . Disarmed . | . . . Reprogrammed . | . . . Reused . | . . . Traps Extracted . | . . . Installed . | . . . Triggered . | . . . Machines | -11 -10 -10 ---------- Run | Yrd Mat Sub Machines Disabled . | . . . Max in Single Turn . | . . . Machines Repaired . | . . . Machines Dismantled . | . . . Machines Sabotaged . | . . . Overloaded Fab Kills . | . . . Hacking | -11 -10 -10 --------- Run | Yrd Mat Sub Machines Accessed 5 | . 5 . Terminals 5 | . 5 . Fabricators . | . . . Repair Stations . | . . . Recycling Units . | . . . Scanalyzers . | . . . Garrison Access . | . . . Total Hacks 12 | . 12 . Successful 9 | . 9 . Failed 3 | . 3 . Catastrophic . | . . . Database Lockouts . | . . . Manual 12 | . 12 . Terminals 12 | . 12 . Fabricators . | . . . Repair Stations . | . . . Recycling Units . | . . . Scanalyzers . | . . . Garrison Access . | . . . Terminal Hacks . | . . . Fabricator Hacks . | . . . Repair Station Hacks . | . . . Recycling Unit Hacks . | . . . Scanalyzer . | . . . Garrison Access Hacks . | . . . Unauthorized Hacks 9 | . 9 . Terminals 9 | . 9 . Botnet 4 | . 4 . Skim 5 | . 5 . Fabricators . | . . . Repair Stations . | . . . Recycling Units . | . . . Scanalyzers . | . . . Garrison Access . | . . . Data Cores Recovered . | . . . Used . | . . . Hacking Detections 2 | . 2 . Full Trace Events . | . . . Feedback Events . | . . . Feedback Blocked . | . . . Robot Schematics Acquired . | . . . Robots Built . | . . . Authchips . | . . . Time . | . . . Total Robot Build Rating . | . . . Part Schematics Acquired . | . . . Parts Built . | . . . Authchips . | . . . Time . | . . . Total Part Build Rating . | . . . Parts Repaired . | . . . Time . | . . . Parts Recycled . | . . . Recycled Matter . | . . . Retrieved Matter . | . . . Retrieved Components . | . . . Parts Scanalyzed . | . . . Part Schematics Acquired . | . . . Parts Damaged . | . . . Bothacking | -11 -10 -10 ------------ Run | Yrd Mat Sub Used RIF Installer . | . . . Robots Hacked . | . . . Non-combat . | . . . Combat . | . . . Robot Hacks Applied . | . . . Relay Couplers Released . | . . . Fabnet Peak Effective % . | . . . Robots Rewired . | . . . Allies Hacked . | . . . Hacks Repelled . | . . . Allies | -11 -10 -10 -------- Run | Yrd Mat Sub Total Allies . | . . . Largest Group . | . . . Highest-Rated Group . | . . . Highest-Rated Ally . | . . . Total Orders . | . . . Ally Attacks . | . . . Total Damage . | . . . Kills . | . . . Allies Corrupted . | . . . Allies Melted . | . . . Intel | -11 -10 -10 ------- Run | Yrd Mat Sub Active Infowar (turns) 1342 | 146 1169 27 Seismic 1342 | 146 1169 27 Robot Analysis Total . | . . . Derelict Logs Recovered . | . . . Drone Launches . | . . . Drone Recoveries . | . . . Exploration | -11 -10 -10 ------------- Run | Yrd Mat Sub Turns Passed 2396 | 235 1169 992 Spaces Moved 915 | 111 384 420 Core 17 | 17 . . Treads 330 | . 330 . Legs 568 | 94 54 420 Wheels . | . . . Hover . | . . . Flight . | . . . Fastest Speed 50 | 50 120 120 Average Speed 205 | 111 263 176 Slowest Speed 320 | 150 320 260 Overloaded Moves . | . . . Propulsion Burnouts . | . . . Robots Hopped . | . . . Potential Cave-ins . | . . . Cave-ins Triggered . | . . . Exploration Rate (%) 38 | 5 74 36 Regions Visited 2 Branch Regions 1 Pre-discovered Areas 1 | . 1 . Known Exits Taken 1 | . 1 . Unknown Exits Taken 1 | 1 . . Scrap Searched . | . . . Spaces Dug . | . . . Terrain Destroyed . | . . . Melee . | . . . Projectile . | . . . AOE . | . . . Terrain Rammed . | . . . Walls Destroyed . | . . . Machines Disabled . | . . . Actions | -11 -10 -10 --------- Run | Yrd Mat Sub Total 1299 | 197 452 650 Wait 260 | 60 5 195 Move 913 | 110 383 420 Hop . | . . . Pick Up 23 | 9 8 6 Fast Attach 6 | 5 . 1 Attach 6 | 2 1 3 Detach . | . . . Swap 10 | . 5 5 Drop 11 | . 3 8 Fire 68 | 11 47 10 Melee . | . . . Ram . | . . . Kick . | . . . Crush . | . . . Escape Stasis . | . . . Rewire . | . . . Trap . | . . . Miscellaneous 2 | . . 2 Route ------- -11/Scrapyard -10/Materials (discovered 4 exits: *Mat x2 / [*Min] / *Sub) -10/Subcaves (discovered 3 exits: *Mat x2 / [*Scr]) History --------- Turn | Location | Event 41 | -11/Scrapyard | Discovered new exit (range 15) 236 | -11/Scrapyard | Entered Materials 332 | -10/Materials | Build established: Mutant 371 | -10/Materials | Identified exit to Materials 437 | -10/Materials | Learned location of 1 exit from Recycling 451 | -10/Materials | Discovered new exit (range 16) 493 | -10/Materials | Learned 2 Mines zone layouts 537 | -10/Materials | Identified exit to Subcaves 570 | -10/Materials | Learned 4 Subcaves zone layouts 591 | -10/Materials | Learned 4 Recycling zone layouts 621 | -10/Materials | Learned location of Storage (-8) 659 | -10/Materials | Learned 4 Recycling zone layouts 710 | -10/Materials | Core integrity fell below 50% 785 | -10/Materials | Lost 3 parts (1p1n1w) 789 | -10/Materials | Discovered exit to Materials (range 11) 1405 | -10/Materials | Entered Subcaves 1406 | -10/Subcaves | Approached by a straggling Scientist 1406 | -10/Subcaves | Identified exit to Materials 1655 | -10/Subcaves | Discovered exit to Materials (range 10) 1665 | -10/Subcaves | Shifting Twisted Machinery released Multitool 1666 | -10/Subcaves | Shifting Twisted Machinery released Sub. Machine Gun 1685 | -10/Subcaves | Shifting Twisted Machinery released Sub. Monowheel 2179 | -10/Subcaves | Scientist uncovered a shortcut to Scraptown 2251 | -10/Subcaves | Core integrity fell below 20% 2397 | -10/Subcaves | Destroyed by P6-770(R) with Subdweller Machine Gun Last Messages --------------- 0V-ZT6(c): "I think it's somewhere northwest of here" 01790_ Penetrated by HV Slug. 01790_ Y-45 Defender destroyed. 01795_ Lgt. Armor Plating fries itself beyond repair. 01797_ Acquired 2 matter. 01804_ Lgt. Treads fries itself beyond repair. 0V-ZT6(c): "I think it's somewhere northwest of here" 01931_ V6-SEV(h) triggered Piercing Trap. 01931_ Spikes shoot up from the floor. 01931_ V6-SEV(h) suffers critical hit (Impale). 0V-ZT6(c): "I think it's somewhere northwest of here" 0V-ZT6(c): "We're getting close, I can feel it." 02179_ 0V-ZT6(c): "Hah, right again, there it is!" 02184_ 0V-ZT6(c) exits level. 02245_ HV Slug penetrates TG-N8A(R). 02247_ V6-SEV(h) destroyed. 02247_ Scrap Shield destroyed. 02248_ Destroyed Scrap Shield. 02251_ TG-N8A(R) destroyed. 02257_ MU-8BI(R) suffers critical hit (Meltdown). Map ----- +----------------------------------------------------+ | ?????????????????????????????????????????????????? | | ?????????????????????????????????????????????????? | | ?????????????????????????????????????????????????? | | ?????????????????????????????????????????????????? | | ?????????????????????????????????????????????????? | | ?????????????????????? ??????????????????????????? | | ????????????????????## ""????????????????????????? | | ???????????????????? "#????????????????????????? | | ?????????????"??????# ""##???????????????????????? | | ??????????????""????#"" #???????????????????????? | | ??????????????? ???## #???????????????????????? | | ???????????????? ??# ##??????????????????????? | | ???????????????## ## #??????????????????????? | | ???????????????# #< R# #??????????????????????? | | ???????????????# # #???????????????????????? | | ???????????????# ##??????????????????????? | | ?????????????????# < ##?????????????????????? | | ?????????????????###< #?????????????????????? | | ???????????????????# #?????????????????????? | | ???????????????????## #?????????????????????? | | ???????????????????## #?????????????????????? | | ???????????????????# #?????????????????????? | | ???????????????????# ####?##############????? | | ???????????????????# # # ### ## #????# | | ???????????????????# #??# $ | | ???????????????????### @ ## # # | | ?????????????????????## ## #### # " " | | ?????????####?????????#### #??## ## | | ????????## ##???????????# #???# #### | | ?????#### #???????????## ##??## #?## | | ???### ## #???????????? ##??# #?# | | ??## ##??????????# #??####?## | | ?## ########?## #??##????## | | ?# # # # ### ## ##???# | | ?## ## #??## | | ??## ##### #???# ## | | ???#> #???## # #?????## ##### | | ???# ####?## ### " ##?????# #???### | | ???## #??###### "" ##??????# ##?????? | | ????### ##?????# "" ## #???????## #??????? | | ??????## ####??# "" ##?? #???????# #??????? | | ??????## #?###"" ##??? #??????## #??????? | | ??????# ##"###"" #???? #?????## #??????? | | ?????## # "" ##" ##?????##????## ##?????? | | ?????# ## ""#### ##?????????### ###???? | | ?????## # ""##??## #?????????# ##??? | | ??????## ""#" "##???# #????????## ##?? | | ???????# """""" "##?## ##??????## #?? | | ???????###"#### ### ######## ## ###?? | | ?????????### " #########???? | +----------------------------------------------------+ Best States ------------- Heat Dissipation 25 Energy Generation 10 Energy Capacity 250 Matter Stores 300 Matter Capacity 300 Sight Range 16 Terrain Scan Density 10 Armor Coverage 800 Evasion (%) 55 Recoil Reduction 2 Item Schematics ----------------- None Robot Schematics ------------------ None Fabricated ------------ Nothing Repaired ---------- Nothing Alien Tech Used ----------------- None Achievements -------------- None Challenges ------------ None Game ------ Seed TerrainMeleeDeflector Manual? 0 Play Time 00:12:01 Cumulative 145.7 hours Start 2025.08.23 @ 13:07:11 End 2025.08.23 @ 13:20:44 Sessions 1 Manual Loads 0 Difficulty Rogue Special Mode None Game No. 204 Rogue 204 Adventurer 0 Explorer 0 Win Type - Total 1 Types 1/0/0/0/0/0/0/0/0/0 Lore% 70 Gallery% 63 Achievement% 54 Wizard Run 0 Options --------- Layout 0 ASCII 0 Keyboard 0 Movement Mouse Keybinds 0 Fullscreen 1 Font 16/SmallcapsGlow Map View 75x55 Zoom Use 0% Tactical HUD 1 Map Filters NONE Filters NONE Steam 1 RUN: 508eaf56-6c7a-4f17-9bb3-46887f1001d8